fUSD/lending_fUSD_20240104
["ID","MTS","AMOUNT","RATE_DAILY","PERIOD"]
[310190111,1704393083435,-9848.56,0.00034794,2]
[310190112,1704393083444,-500.0,0.00034794,2]
[310190113,1704393083454,-500.0,0.00034794,2]
[310190114,1704393083463,-2620.52,0.00034794,2]
[310190115,1704393083473,-847.43,0.00034794,2]
[310190116,1704393083482,-500.0,0.00034794,2]
[310190117,1704393083491,-2164.27,0.00034794,2]
[310190118,1704393083501,-3882.14,0.00034794,2]
[310190119,1704393083511,-500.0,0.00034794,2]
[310190120,1704393083521,-500.0,0.00034794,2]
[310190121,1704393083530,-500.0,0.00034794,2]
[310190122,1704393083539,-770.75,0.00034794,2]
[310190123,1704393083549,-500.0,0.00034794,2]
[310190124,1704393083559,-500.0,0.00034794,2]
[310190125,1704393083569,-1739.34,0.00034794,2]
[310190126,1704393083578,-500.0,0.00034794,2]
[310190127,1704393083587,-603.57,0.00034794,2]
[310190128,1704393083597,-1413.69,0.00034794,2]
[310190129,1704393083607,-500.0,0.00034794,2]
[310190130,1704393083617,-771.2,0.00034794,2]
[310190131,1704393083626,-1038.56,0.00034794,2]
[310190132,1704393083636,-500.0,0.00034794,2]
[310190133,1704393083645,-605.48,0.00034794,2]
[310190134,1704393083654,-500.0,0.00034794,2]
[310190135,1704393083665,-500.0,0.00034794,2]
[310190136,1704393083675,-3640.94,0.00034794,2]
[310190137,1704393083684,-513.84,0.00034794,2]
[310190138,1704393083693,-500.0,0.00034794,2]
[310190139,1704393083703,-1548.29,0.00034794,2]
[310190140,1704393083713,-500.0,0.00034794,2]
[310190141,1704393083722,-500.0,0.00034794,2]
[310190142,1704393083732,-1540.02,0.00034794,2]
[310190143,1704393083742,-500.0,0.00034794,2]
[310190144,1704393083751,-5366.2,0.00034794,2]
[310190145,1704393083761,-979.53,0.00034794,2]
[310190146,1704393083770,-500.0,0.00034794,2]
[310190147,1704393083781,-500.0,0.00034794,2]
[310190148,1704393083790,-1006.3,0.00034794,2]
[310190149,1704393083799,-1535.97,0.00034794,2]
[310190150,1704393083809,-1513.83,0.00034794,2]
[310190151,1704393083820,-500.0,0.00034794,2]
[310190152,1704393083829,-890.61,0.00034794,2]
[310190153,1704393083838,-500.0,0.00034794,2]
[310190154,1704393083847,-500.0,0.00034794,2]
[310190155,1704393083857,-565.49,0.00034794,2]
[310190156,1704393083866,-500.0,0.00034794,2]
[310190157,1704393083876,-576.87,0.00034794,2]
[310190158,1704393083885,-1916.01,0.00034794,2]
[310190159,1704393083894,-500.0,0.00034794,2]
[310190160,1704393083903,-4181.93,0.00034794,2]
[310190161,1704393083912,-2086.82,0.00034794,2]
[310190162,1704393083922,-500.0,0.00034794,2]
[310190163,1704393083931,-500.0,0.00034794,2]
[310190164,1704393083940,-637.98,0.00034794,2]
[310190165,1704393083950,-809.81,0.00034794,2]
[310190166,1704393083959,-500.0,0.00034794,2]
[310190167,1704393083968,-651.52,0.00034794,2]
[310190168,1704393083977,-500.0,0.00034794,2]
[310190169,1704393083987,-500.0,0.00034794,2]
[310190170,1704393083997,-500.0,0.00034794,2]
[310190171,1704393084006,-7865.29,0.00034794,2]
[310190172,1704393084015,-1084.98,0.00034794,2]
[310190173,1704393084024,-1422.0,0.00034794,2]
[310190174,1704393084033,-500.0,0.00034794,2]
[310190175,1704393084043,-558.54,0.00034794,2]
[310190176,1704393084053,-560.45,0.00034794,2]
[310190177,1704393084062,-500.0,0.00034794,2]
[310190178,1704393084073,-688.44,0.00034794,2]
[310190179,1704393084082,-1827.5,0.00034794,2]
[310190180,1704393084092,-590.76,0.00034794,2]
[310190181,1704393084102,-500.0,0.00034794,2]
[310190182,1704393084111,-500.0,0.00034794,2]
[310190183,1704393084121,-500.0,0.00034794,2]
[310190184,1704393084131,-307.11,0.00034794,2]
[310190185,1704393084140,-563.32,0.00034794,2]
[310190186,1704393084150,-614.15,0.00034794,2]
[310190187,1704393084160,-1496.86,0.00034794,2]
[310190188,1704393084170,-1622.69,0.00034794,2]
[310190189,1704393084179,-7567.89,0.00034794,2]
[310190190,1704393084189,-1943.22,0.00034794,2]
[310190191,1704393084198,-500.0,0.00034794,2]
[310190192,1704393084208,-751.43,0.00034794,2]
[310190193,1704393084219,-832.65,0.00034794,2]
[310190194,1704393084229,-500.0,0.00034794,2]
[310190195,1704393084238,-500.0,0.00034794,2]
[310190196,1704393084248,-894.18,0.00034794,2]
[310190197,1704393084259,-500.0,0.00034794,2]
[310190198,1704393084268,-500.0,0.00034794,2]
[310190199,1704393084279,-623.42,0.00034794,2]
[310190200,1704393084288,-500.0,0.00034794,2]
[310190201,1704393084298,-545.14,0.00034794,2]
[310190202,1704393084309,-500.0,0.00034794,2]
[310190203,1704393084319,-1914.26,0.00034794,2]
[310190204,1704393084328,-500.0,0.00034794,2]
[310190205,1704393084338,-500.0,0.00034794,2]
[310190206,1704393084348,-1641.84,0.00034794,2]
[310190207,1704393084358,-602.53,0.00034794,2]
[310190208,1704393084370,-500.0,0.00034794,2]
[310190209,1704393084379,-874.07,0.00034794,2]
[310190210,1704393084389,-500.0,0.00034794,2]
[310190211,1704393084399,-742.9,0.00034794,2]
[310190212,1704393084409,-616.85,0.00034794,2]
[310190213,1704393084418,-500.0,0.00034794,2]
[310190214,1704393084428,-500.0,0.00034794,2]
[310190215,1704393084437,-500.0,0.00034794,2]
[310190216,1704393084448,-500.0,0.00034794,2]
[310190217,1704393084457,-1626.8,0.00034794,2]
[310190218,1704393084467,-500.0,0.00034794,2]
[310190219,1704393084476,-1682.88,0.00034794,2]
[310190220,1704393084486,-500.0,0.00034794,2]
[310190221,1704393084494,-500.0,0.00034794,2]
[310190222,1704393084504,-500.0,0.00034794,2]
[310190223,1704393084514,-500.0,0.00034794,2]
[310190224,1704393084523,-1646.14,0.00034794,2]
[310190225,1704393084532,-2169.3,0.00034794,2]
[310190226,1704393084542,-500.0,0.00034794,2]
[310190227,1704393084551,-500.0,0.00034794,2]
[310190228,1704393084561,-1635.2,0.00034794,2]
[310190229,1704393084571,-500.0,0.00034794,2]
[310190230,1704393084580,-882.54,0.00034794,2]
[310190231,1704393084590,-500.0,0.00034794,2]
[310190232,1704393084599,-500.0,0.00034794,2]
[310190233,1704393084609,-644.49,0.00034794,2]
[310190234,1704393084618,-500.0,0.00034794,2]
[310190235,1704393084627,-197.66616623,0.00034794,2]
[310190236,1704393084637,-1057.84,0.00034794,2]
[310190237,1704393084646,-500.0,0.00034794,2]
[310190238,1704393084655,-500.0,0.00034794,2]
[310190239,1704393084667,-539.45,0.00034794,2]
[310190240,1704393084683,-1064.36,0.00034794,2]
[310190241,1704393084693,-1022.82,0.00034794,2]
[310190242,1704393084702,-1198.45,0.00034794,2]
[310190243,1704393084711,-500.0,0.00034794,2]
[310190244,1704393084720,-500.0,0.00034794,2]
[310190245,1704393084729,-2032.28,0.00034794,2]
[310190246,1704393084738,-500.0,0.00034799,2]
[310190247,1704393084747,-151.0,0.000348,7]
[310190248,1704393084756,-6896.98334792,0.000348,2]
[310190249,1704393085209,-701.71055189,0.000348,2]
[310190250,1704393085305,-8966.07973409,0.000348,2]
[310190251,1704393085319,-6489.1009661,0.000348,2]
[310190252,1704393085331,-312.46,0.00034837,2]
[310190253,1704393085342,-91478.4373929,0.0003484,3]
[310190254,1704393085353,-530.04,0.00034853,2]
[310190255,1704393085364,-153.84,0.00034876,2]
[310190256,1704393085374,-363.11,0.00034887,2]
[310190257,1704393085384,-150.01,0.00034898,2]
[310190258,1704393085394,-1641.98044309,0.00034898,2]
[310190259,1704393085404,-1992.79,0.00034898,2]
[310190260,1704393085413,-579.06580211,0.00034899,2]
[310190261,1704393085424,-1992.79,0.00034899,2]
[310190262,1704393085437,-1992.79,0.00034899,2]
[310190263,1704393085447,-1992.79,0.00034899,2]
[310190264,1704393085457,-1992.79,0.00034899,2]
[310190265,1704393085467,-1992.79,0.00034899,2]
[310190266,1704393085477,-1992.79,0.00034899,2]
[310190267,1704393085487,-1992.79,0.00034899,2]
[310190268,1704393085496,-1992.79,0.00034899,2]
[310190269,1704393085506,-1992.79,0.00034899,2]
[310190270,1704393085516,-1992.79,0.00034899,2]
[310190271,1704393085526,-1992.79,0.00034899,2]
[310190272,1704393085537,-1503.81252,0.00034899,2]
[310190273,1704393085547,-150.0,0.00034899,2]
[310190274,1704393085557,-150.0,0.00034899,2]
[310190275,1704393085569,-97476.78140479,0.000349,6]
[310190276,1704393085590,-62483.27488481,0.000349,6]
[310190277,1704393085603,-296727.73071427,0.000349,6]
[310190278,1704393085616,-347.44581063,0.000349,6]
[310190279,1704393085629,-373.99662793,0.000349,6]
[310190280,1704393085641,-351.8607119,0.000349,6]
[310190281,1704393085673,-495.06200404,0.000349,6]
[310190282,1704393085685,-770.49,0.000349,6]
[310190283,1704393085697,-3011.84866342,0.000349,6]
[310190284,1704393085709,-779.38598227,0.000349,6]
[310190285,1704393085721,-1335.57189952,0.000349,6]
[310190286,1704393085822,-768.0,0.000349,6]
[310190287,1704393085834,-551.28542087,0.000349,6]
[310190288,1704393085846,-267.12499998,0.000349,6]
[310190289,1704393090098,189.9614115,0.00025,2]
[310190334,1704394231524,-250.0,0.00027,3]
[310190335,1704394231534,-250.0,0.000274,2]
[310190336,1704394231544,-1306.830784,0.00028999,2]
[310190337,1704394231558,-585.82767575,0.00028999,2]
[310190338,1704394231708,-715.97705936,0.00028999,2]
[310190339,1704394231718,-129.27434136,0.00029,3]
[310190340,1704394231731,-170.72565864,0.00029,3]
[310190341,1704394231740,-153.6915271,0.00029715,2]
[310190342,1704394231757,-3.62721312,0.00029715,2]
[310190343,1704394231767,-1826.34001326,0.00029715,2]
[310190344,1704394231776,-680.7,0.00029815,2]
[310190345,1704394231786,-750.59,0.00029894,2]
[310190346,1704394231796,-162.05,0.00030193,2]
[310190347,1704394231805,-350.0,0.00031,3]
[310190348,1704394231816,-150.0,0.00031289,2]
[310190349,1704394231825,-500.0,0.000315,2]
[310190350,1704394231835,-400.0,0.00031647,3]
[310190351,1704394231846,-150.0,0.00031647,3]
[310190352,1704394231856,-23900.0,0.00031648,2]
[310190353,1704394231865,-185.83,0.00031706,2]
[310190354,1704394231874,-408.5,0.00031712,2]
[310190355,1704394231884,-249.41,0.00031768,2]
[310190356,1704394231893,-168.82,0.00031768,2]
[310190357,1704394231903,-388.21,0.0003188,2]
[310190358,1704394231912,-183.76,0.00031961,2]
[310190359,1704394231923,-150.0,0.00032,2]
[310190360,1704394231933,-680.7,0.00032079,2]
[310190361,1704394231942,-499.99,0.00032221,2]
[310190362,1704394231952,-1000.0,0.00032273,2]
[310190364,1704394231961,-550.84345348,0.00032619,14]
[310190366,1704394231971,-1266.535,0.00032619,2]
[310190368,1704394231981,-2641.76324429,0.00032675,2]
[310190370,1704394231990,-2500.0,0.00032676,2]
[310190373,1704394232000,-408.5,0.00032691,2]
[310190375,1704394232010,-42379.4272,0.000327,2]
[310190377,1704394232019,-75264.0133,0.00032719,2]
[310190378,1704394232030,-2641.76324427,0.00032726,2]
[310190379,1704394232042,-779.62915278,0.00032775,4]
[310190380,1704394232051,-2000.0,0.00032776,4]
[310190381,1704394232060,-48736.103,0.00032776,2]
[310190382,1704394232071,-332.8723973,0.00032776,2]
[310190383,1704394232080,-2641.76324427,0.00032776,2]
[310190384,1704394232090,-7184.69189699,0.000328,2]
[310190385,1704394232102,-12471.0,0.000328,2]
[310190386,1704394232120,-358.97557567,0.000328,2]
[310190387,1704394232133,-991.33252734,0.000328,2]
[310190388,1704394232142,-260.27783637,0.00032866,4]
[310190389,1704394232203,-296.29826221,0.00032866,4]
[310190390,1704394232215,-544.02,0.00032866,4]
[310190391,1704394232228,-336.419999,0.00032866,4]
[310190407,1704394237697,-18185.96262802,0.00032866,4]
[310190408,1704394237707,-580.41,0.00032874,2]
[310190409,1704394237717,-696.75265605,0.00032874,4]
[310190410,1704394237727,-1476.73172442,0.00032875,4]
[310190411,1704394237737,-183.01061891,0.00032876,2]
[310190412,1704394237747,-500.0,0.00032876,2]
[310190413,1704394237757,-500.0,0.00032876,2]
[310190414,1704394237767,-500.0,0.00032876,2]
[310190415,1704394237778,-500.0,0.00032876,2]
[310190416,1704394237788,-500.0,0.00032876,2]
[310190417,1704394237799,-500.0,0.00032876,2]
[310190418,1704394237809,-500.0,0.00032876,2]
[310190419,1704394237819,-500.0,0.00032876,2]
[310190420,1704394237829,-500.0,0.00032876,2]
[310190421,1704394237839,-500.0,0.00032876,2]
[310190422,1704394237848,-500.0,0.00032876,2]
[310190423,1704394237857,-500.0,0.00032876,2]
[310190424,1704394237867,-500.0,0.00032876,2]
[310190425,1704394237876,-500.0,0.00032876,2]
[310190426,1704394237886,-500.0,0.00032876,2]
[310190427,1704394237896,-500.0,0.00032876,2]
[310190428,1704394237906,-500.0,0.00032876,2]
[310190429,1704394237915,-2883.69,0.00032876,2]
[310190430,1704394237925,-500.0,0.00032876,2]
[310190431,1704394237935,-500.0,0.00032876,2]
[310190432,1704394237947,-500.0,0.00032876,2]
[310190433,1704394237957,-500.0,0.00032876,2]
[310190434,1704394237968,-500.0,0.00032876,2]
[310190435,1704394237980,-500.0,0.00032876,2]
[310190436,1704394237990,-500.0,0.00032876,2]
[310190437,1704394237999,-500.0,0.00032876,2]
[310190438,1704394238009,-500.0,0.00032876,2]
[310190439,1704394238019,-500.0,0.00032876,2]
[310190440,1704394238029,-500.0,0.00032876,2]
[310190441,1704394238040,-500.0,0.00032876,2]
[310190442,1704394238050,-500.0,0.00032876,2]
[310190443,1704394238060,-500.0,0.00032876,2]
[310190444,1704394238069,-500.0,0.00032876,2]
[310190445,1704394238081,-500.0,0.00032876,2]
[310190446,1704394238090,-500.0,0.00032876,2]
[310190447,1704394238100,-500.0,0.00032876,2]
[310190448,1704394238110,-500.0,0.00032876,2]
[310190449,1704394238119,-500.0,0.00032876,2]
[310190450,1704394238130,-500.0,0.00032876,2]
[310190451,1704394238140,-500.0,0.00032876,2]
[310190452,1704394238151,-500.0,0.00032876,2]
[310190453,1704394238160,-500.0,0.00032876,2]
[310190454,1704394238170,-500.0,0.00032876,2]
[310190455,1704394238179,-500.0,0.00032876,2]
[310190456,1704394238189,-500.0,0.00032876,2]
[310190457,1704394238198,-500.0,0.00032876,2]
[310190458,1704394238208,-500.0,0.00032876,2]
[310190459,1704394238217,-500.0,0.00032876,2]
[310190460,1704394238227,-500.0,0.00032876,2]
[310190461,1704394238237,-500.0,0.00032876,2]
[310190462,1704394238247,-500.0,0.00032876,2]
[310190463,1704394238258,-500.0,0.00032876,2]
[310190464,1704394238267,-500.0,0.00032876,2]
[310190465,1704394238276,-500.0,0.00032876,2]
[310190466,1704394238285,-500.0,0.00032876,2]
[310190467,1704394238295,-500.0,0.00032876,2]
[310190468,1704394238304,-500.0,0.00032876,2]
[310190470,1704394238593,-500.0,0.00032876,2]
[310190471,1704394238603,-500.0,0.00032876,2]
[310190472,1704394238612,-500.0,0.00032876,2]
[310190473,1704394238622,-500.0,0.00032876,2]
[310190474,1704394238632,-500.0,0.00032876,2]
[310190475,1704394238643,-429.28686,0.00032876,2]
[310190476,1704394238653,-500.0,0.00032876,2]
[310190477,1704394238662,-500.0,0.00032876,2]
[310190478,1704394238672,-500.0,0.00032876,2]
[310190479,1704394238681,-500.0,0.00032876,2]
[310190480,1704394238690,-584.27307463,0.00032876,2]
[310190481,1704394238700,-500.0,0.00032876,2]
[310190482,1704394238709,-500.0,0.00032876,2]
[310190483,1704394238720,-500.0,0.00032876,2]
[310190484,1704394238729,-500.0,0.00032876,2]
[310190485,1704394238739,-408.44412714,0.00032876,2]
[310190486,1704394238748,-500.0,0.00032876,2]
[310190487,1704394238759,-500.0,0.00032876,2]
[310190488,1704394238772,-500.0,0.00032876,2]
[310190489,1704394238782,-496.26597028,0.00032876,2]
[310190490,1704394238791,-500.0,0.00032876,2]
[310190491,1704394238802,-500.0,0.00032876,2]
[310190492,1704394238812,-2351.646,0.00032876,2]
[310190493,1704394238822,-500.0,0.00032876,2]
[310190494,1704394238833,-500.0,0.00032876,2]
[310190495,1704394238843,-500.0,0.00032876,2]
[310190496,1704394238854,-171.83,0.00032876,2]
[310190497,1704394238863,-500.0,0.00032876,2]
[310190498,1704394238872,-500.0,0.00032876,2]
[310190499,1704394238881,-500.0,0.00032876,2]
[310190500,1704394238891,-500.0,0.00032876,2]
[310190501,1704394238901,-500.0,0.00032876,2]
[310190502,1704394238910,-500.0,0.00032876,2]
[310190503,1704394238920,-500.0,0.00032876,2]
[310190504,1704394238928,-499.26654432,0.00032876,2]
[310190505,1704394238941,-500.0,0.00032876,2]
[310190506,1704394238950,-500.0,0.00032876,2]
[310190507,1704394238960,-500.0,0.00032876,2]
[310190508,1704394238971,-500.0,0.00032876,2]
[310190509,1704394238982,-500.0,0.00032876,2]
[310190510,1704394238993,-500.0,0.00032876,2]
[310190511,1704394239002,-500.0,0.00032876,2]
[310190512,1704394239013,-500.0,0.00032876,2]
[310190513,1704394239023,-500.0,0.00032876,2]
[310190514,1704394239033,-500.0,0.00032876,2]
[310190515,1704394239042,-362.96536721,0.00032876,2]
[310190516,1704394239052,-500.0,0.00032876,2]
[310190517,1704394239062,-219.03469496,0.00032876,2]
[310190518,1704394239071,-500.0,0.00032876,2]
[310190519,1704394239081,-500.0,0.00032876,2]
[310190520,1704394239092,-500.0,0.00032876,2]
[310190521,1704394239101,-500.0,0.00032876,2]
[310190522,1704394239111,-500.0,0.00032876,2]
[310190523,1704394239120,-500.0,0.00032876,2]
[310190524,1704394239129,-500.0,0.00032876,2]
[310190525,1704394239138,-500.0,0.00032876,2]
[310190526,1704394239148,-500.0,0.00032876,2]
[310190527,1704394239157,-500.0,0.00032876,2]
[310190528,1704394239166,-500.0,0.00032876,2]
[310190529,1704394239175,-233.0189716,0.00032876,2]
[310190530,1704394239199,-282.99937804,0.00032876,2]
[310190531,1704394239209,-500.0,0.00032876,2]
[310190532,1704394239219,-516.45263573,0.00032876,2]
[310190533,1704394239229,-500.0,0.00032876,2]
[310190534,1704394239238,-500.0,0.00032876,2]
[310190535,1704394239247,-500.0,0.00032876,2]
[310190536,1704394239256,-503.55346002,0.00032876,2]
[310190537,1704394239265,-500.0,0.00032876,2]
[310190538,1704394239275,-500.0,0.00032876,2]
[310190539,1704394239284,-500.0,0.00032876,2]
[310190540,1704394239294,-500.0,0.00032876,2]
[310190541,1704394239303,-500.0,0.00032876,2]
[310190542,1704394239313,-500.0,0.00032876,2]
[310190543,1704394239322,-500.0,0.00032876,2]
[310190544,1704394239331,-500.0,0.00032876,2]
[310190545,1704394239342,-500.0,0.00032876,2]
[310190546,1704394239352,-630.00430831,0.00032876,2]
[310190547,1704394239362,-500.0,0.00032876,2]
[310190548,1704394239371,-435.74969039,0.00032876,2]
[310190549,1704394239381,-500.0,0.00032876,2]
[310190550,1704394239391,-500.0,0.00032876,2]
[310190551,1704394239400,-384.19499252,0.00032876,2]
[310190552,1704394239409,-464.63359112,0.00032876,2]
[310190560,1704394240200,-63.48432202,0.00032876,2]
[310190561,1704394240211,-500.0,0.00032876,2]
[310190562,1704394240220,-500.0,0.00032876,2]
[310190563,1704394240229,-500.0,0.00032876,2]
[310190564,1704394240239,-500.0,0.00032876,2]
[310190565,1704394240249,-554.70913908,0.00032876,2]
[310190566,1704394240258,-556.10811044,0.00032876,2]
[310190567,1704394240268,-540.21650602,0.00032876,2]
[310190568,1704394240277,-500.0,0.00032876,2]
[310190569,1704394240286,-500.0,0.00032876,2]
[310190570,1704394240295,-558.38689596,0.00032876,2]
[310190571,1704394240305,-500.0,0.00032876,2]
[310190572,1704394240314,-102.28172648,0.00032876,2]
[310190573,1704394240327,-413.93827352,0.00032876,2]
[310190574,1704394240337,-500.0,0.00032876,2]
[310190575,1704394240346,-525.4658322,0.00032876,2]
[310190576,1704394240355,-500.0,0.00032876,2]
[310190577,1704394240364,-186.8185331,0.00032876,2]
[310190578,1704394240380,-361.0250806,0.00032876,2]
[310190579,1704394240389,-500.0,0.00032876,2]
[310190580,1704394240399,-500.0,0.00032876,2]
[310190581,1704394240415,-500.0,0.00032876,2]
[310190582,1704394240424,-500.0,0.00032876,2]
[310190583,1704394240434,-500.0,0.00032876,2]
[310190584,1704394240443,-500.0,0.00032876,2]
[310190585,1704394240453,-500.0,0.00032876,2]
[310190586,1704394240462,-500.0,0.00032876,2]
[310190587,1704394240473,-500.0,0.00032876,2]
[310190588,1704394240482,-500.0,0.00032876,2]
[310190589,1704394240492,-540.96358893,0.00032876,2]
[310190590,1704394240502,-500.0,0.00032876,2]
[310190591,1704394240512,-190.54292047,0.00032876,2]
[310190592,1704394240524,-309.45707953,0.00032876,2]
[310190593,1704394240535,-190.54292047,0.00032876,2]
[310190594,1704394240548,-309.45707953,0.00032876,2]
[310190595,1704394240558,-500.0,0.00032876,2]
[310190596,1704394240568,-500.0,0.00032876,2]
[310190597,1704394240578,-500.0,0.00032876,2]
[310190598,1704394240587,-609.48848472,0.00032876,2]
[310190599,1704394240596,-470.95512217,0.00032876,2]
[310190600,1704394240606,-500.0,0.00032876,2]
[310190601,1704394240615,-500.0,0.00032876,2]
[310190602,1704394240624,-230.52952999,0.00032876,2]
[310190603,1704394240634,-629.64306714,0.00032876,2]
[310190604,1704394240644,-500.0,0.00032876,2]
[310190605,1704394240653,-500.0,0.00032876,2]
[310190606,1704394240662,-500.0,0.00032876,2]
[310190607,1704394240672,-500.0,0.00032876,2]
[310190608,1704394240681,-500.0,0.00032876,2]
[310190609,1704394240690,-500.0,0.00032876,2]
[310190610,1704394240700,-500.0,0.00032876,2]
[310190611,1704394240710,-612.83479333,0.00032876,2]
[310190612,1704394240723,-570.29267347,0.00032876,2]
[310190613,1704394240732,-500.0,0.00032876,2]
[310190614,1704394240742,-500.0,0.00032876,2]
[310190615,1704394240752,-500.0,0.00032876,2]
[310190616,1704394240762,-500.0,0.00032876,2]
[310190617,1704394240772,-500.0,0.00032876,2]
[310190618,1704394240782,-500.0,0.00032876,2]
[310190619,1704394240793,-500.0,0.00032876,2]
[310190620,1704394240802,-500.0,0.00032876,2]
[310190621,1704394240811,-500.0,0.00032876,2]
[310190622,1704394240820,-500.0,0.00032876,2]
[310190623,1704394240830,-501.07224597,0.00032876,2]
[310190624,1704394240839,-500.0,0.00032876,2]
[310190625,1704394240849,-500.0,0.00032876,2]
[310190626,1704394240861,-500.0,0.00032876,2]
[310190627,1704394240870,-500.0,0.00032876,2]
[310190628,1704394240880,-500.0,0.00032876,2]
[310190629,1704394240889,-500.0,0.00032876,2]
[310190630,1704394240898,-461.92574066,0.00032876,2]
[310190631,1704394240907,-522.13697635,0.00032876,2]
[310190632,1704394240917,-429.09323202,0.00032876,2]
[310190633,1704394240926,-383.11199675,0.00032876,2]
[310190634,1704394240935,-500.0,0.00032876,2]
[310190635,1704394240944,-500.0,0.00032876,2]
[310190636,1704394240954,-500.0,0.00032876,2]
[310190637,1704394240963,-500.0,0.00032876,2]
[310190638,1704394240972,-500.0,0.00032876,2]
[310190639,1704394240982,-500.0,0.00032876,2]
[310190640,1704394240991,-226.63949545,0.00032876,2]
[310190641,1704394241002,-500.0,0.00032876,2]
[310190642,1704394241011,-380.16084297,0.00032876,2]
[310190643,1704394241021,-500.0,0.00032876,2]
[310190644,1704394241031,-500.0,0.00032876,2]
[310190645,1704394241040,-500.0,0.00032876,2]
[310190646,1704394241049,-500.0,0.00032876,2]
[310190647,1704394241060,-553.16,0.00032876,2]
[310190648,1704394241070,-683.51,0.00032876,2]
[310190649,1704394241080,-500.0,0.00032876,2]
[310190650,1704394241089,-1276.81,0.00032876,2]
[310190651,1704394241098,-500.0,0.00032876,2]
[310190652,1704394241108,-592.61,0.00032876,2]
[310190653,1704394241119,-3368.91,0.00032876,2]
[310190654,1704394241128,-2198.54,0.00032876,2]
[310190655,1704394241137,-585.79,0.00032876,2]
[310190656,1704394241146,-941.49,0.00032876,2]
[310190657,1704394241156,-500.0,0.00032876,2]
[310190658,1704394241166,-859.04,0.00032876,2]
[310190659,1704394241175,-1951.46,0.00032876,2]
[310190660,1704394241186,-500.0,0.00032876,2]
[310190661,1704394241196,-534.67,0.00032876,2]
[310190662,1704394241206,-500.0,0.00032876,2]
[310190663,1704394241214,-500.0,0.00032876,2]
[310190664,1704394241223,-500.0,0.00032876,2]
[310190665,1704394241233,-500.0,0.00032876,2]
[310190666,1704394241244,-500.0,0.00032876,2]
[310190667,1704394241254,-500.0,0.00032876,2]
[310190668,1704394241264,-1504.54,0.00032876,2]
[310190669,1704394241274,-500.0,0.00032876,2]
[310190670,1704394241284,-347.06633643,0.00032876,2]
[310190671,1704394241299,-152.93366357,0.00032876,2]
[310190672,1704394241308,-500.0,0.00032876,2]
[310190673,1704394241321,-488.15957676,0.00032876,2]
[310190674,1704394241359,-1216.11074604,0.00032876,2]
[310190675,1704394241371,-902.0596772,0.00032876,2]
[310190676,1704394241426,-500.0,0.00032876,2]
[310190677,1704394241436,-500.0,0.00032876,2]
[310190678,1704394241445,-500.0,0.00032876,2]
[310190679,1704394241455,-744.64,0.00032876,2]
[310190680,1704394241464,-619.09,0.00032876,2]
[310190681,1704394241473,-500.0,0.00032876,2]
[310190682,1704394241482,-692.38,0.00032876,2]
[310190683,1704394241492,-500.0,0.00032876,2]
[310190684,1704394241502,-1329.64,0.00032876,2]
[310190685,1704394241512,-500.0,0.00032876,2]